bitfinex/quotes_SOLUSD_20240620
["timestamp","ask_amount","ask_price","bid_price","bid_amount"]
[1718861618123,0.17,135.4,135.32,22.03]
[1718861618622,6.2104,135.39,135.29,22.03]
[1718861618923,15.6731,135.38,135.3,20.0]
[1718861620724,22.4868,135.37,135.29,22.03]
[1718861620911,6.3059,135.34,135.24,275.63]
[1718861621107,6.3059,135.34,135.27,22.03]
[1718861622330,16.115,135.38,135.31,0.17]
[1718861622503,16.115,135.38,135.31,20.68]
[1718861622911,16.115,135.38,135.31,20.0]
[1718861623523,16.115,135.38,135.32,0.17]
[1718861623728,16.115,135.38,135.32,0.68]
[1718861623929,16.115,135.38,135.32,0.51]
[1718861629724,16.115,135.38,135.32,0.17]
[1718861631522,16.115,135.38,135.32,0.34]
[1718861631726,16.115,135.38,135.32,0.51]
[1718861636137,16.115,135.38,135.31,20.0]
[1718861637726,16.115,135.38,135.32,0.17]
[1718861637926,16.115,135.38,135.32,0.68]
[1718861640340,16.115,135.38,135.32,0.17]
[1718861640645,16.115,135.38,135.31,20.0]
[1718861642529,6.4434,135.36,135.31,20.0]
[1718861642857,6.4434,135.36,135.27,16.115]
[1718861642858,15.0815,135.35,135.27,22.03]
[1718861643036,6.4543,135.34,135.28,20.0]
[1718861643365,15.4214,135.33,135.25,20.0]
[1718861643525,15.5914,135.33,135.25,20.0]
[1718861644130,15.5914,135.33,135.24,20.0]
[1718861644529,0.51,135.32,135.24,20.0]
[1718861644724,0.34,135.32,135.24,20.0]
[1718861644931,15.7631,135.3,135.24,20.0]
[1718861646940,15.7631,135.3,135.21,5.85227843]
[1718861647139,15.7631,135.3,135.22,20.0]
[1718861651450,15.7631,135.3,135.23,0.68]
[1718861653234,15.7631,135.3,135.22,20.0]
[1718861653552,15.7631,135.3,135.22,22.03]
[1718861653855,15.7631,135.3,135.23,20.0]
[1718861654559,16.2574,135.28,135.18,253.6]
[1718861654854,16.2574,135.28,135.19,20.0]
[1718861655060,16.2574,135.28,135.18,22.03]
[1718861655243,23.6494,135.28,135.18,22.03]
[1718861655447,16.2574,135.28,135.18,22.03]
[1718861655848,16.2574,135.28,135.19,0.51]
[1718861656446,16.2574,135.28,135.19,20.51]
[1718861656949,16.2574,135.28,135.2,0.17]
[1718861658156,6.213,135.27,135.19,20.0]
[1718861658359,6.4784,135.25,135.19,20.0]
[1718861658541,0.17,135.23,135.16,20.0]
[1718861658739,15.4571,135.24,135.15,20.0]
[1718861658941,15.4571,135.24,135.14,22.03]
[1718861659354,6.2055,135.22,135.14,22.03]
[1718861660357,6.2055,135.22,135.15,20.0]
[1718861662037,6.2055,135.22,135.16,0.51]
[1718861662243,6.2055,135.22,135.18,0.17]
[1718861662557,6.2055,135.22,135.18,20.51]
[1718861662759,6.2055,135.22,135.18,20.0]
[1718861670944,6.2055,135.22,135.19,0.17]
[1718861671144,15.4571,135.24,135.19,0.68]
[1718861676355,21.6603,135.28,135.21,0.17]
[1718861676553,21.6603,135.28,135.21,20.68]
[1718861678064,21.6603,135.28,135.24,0.17]
[1718861678267,21.6603,135.28,135.24,20.68]
[1718861678668,21.6603,135.28,135.25,0.8510334]
[1718861679466,21.6603,135.28,135.24,20.68]
[1718861680567,6.3601,135.32,135.24,20.68]
[1718861681678,15.2093,135.31,135.24,20.17]
[1718861681876,15.2093,135.29,135.17,22.82180684]
[1718861682081,15.2093,135.29,135.19,22.03]
[1718861683162,22.091,135.27,135.17,34.94195681]
[1718861683366,22.091,135.27,135.18,20.0]
[1718861685566,22.091,135.27,135.19,0.68]
[1718861686094,22.091,135.27,135.2,22.03]
[1718861686269,22.091,135.27,135.21,20.68]
[1718861686892,22.091,135.27,135.21,20.0]
[1718861687677,22.091,135.27,135.22,0.17]
[1718861687883,22.091,135.27,135.22,0.68]
[1718861690282,22.091,135.27,135.21,20.0]
[1718861690771,22.091,135.27,135.21,0.17]
[1718861690975,22.091,135.27,135.21,0.68]
[1718861691597,22.091,135.27,135.2,0.17]
[1718861691797,22.091,135.27,135.21,0.17]
[1718861691978,22.091,135.27,135.2,0.34]
[1718861695788,22.091,135.27,135.19,0.34]
[1718861696377,22.091,135.27,135.2,0.34]
[1718861696577,22.091,135.27,135.19,0.34]
[1718861699491,22.091,135.27,135.18,20.34]
[1718861699688,22.091,135.27,135.19,0.68]
[1718861700003,22.091,135.27,135.19,0.51]
[1718861701105,16.2934,135.26,135.18,20.0]
[1718861701292,0.51,135.28,135.18,20.0]
[1718861701293,16.2934,135.24,135.18,20.0]
[1718861703104,16.2934,135.24,135.19,0.17]
[1718861703881,16.2934,135.24,135.18,20.0]
[1718861705715,6.1448,135.23,135.18,20.0]
[1718861705888,16.085,135.22,135.15,20.0]
[1718861712304,16.085,135.22,135.16,0.17]
[1718861712615,16.085,135.22,135.17,22.03]
[1718861713205,16.085,135.22,135.15,20.0]
[1718861713206,5.42386101,135.21,135.15,20.0]
[1718861713501,5.42386101,135.21,135.14,20.0]
[1718861714214,15.6382,135.2,135.14,20.0]
[1718861714421,15.6382,135.2,135.13,20.0]
[1718861715410,15.6382,135.2,135.14,0.34]
[1718861716609,15.6382,135.2,135.16,0.17]
[1718861716791,15.6382,135.2,135.16,20.34]
[1718861719010,15.6382,135.2,135.16,20.0]
[1718861720004,15.6382,135.2,135.13,20.0]
[1718861720603,15.6382,135.2,135.11,20.0]
[1718861721009,22.03,135.27,135.09,6.95370684]
[1718861721010,16.361,135.18,135.09,6.95370684]
[1718861721497,6.5948,135.17,135.07,5.92122295]
[1718861721696,16.1277,135.16,135.06,6.95370684]
[1718861721892,16.1277,135.16,135.07,22.03]
[1718861722914,16.1277,135.16,135.08,20.0]
[1718861723214,2.10628478,135.15,135.09,0.51]
[1718861723827,2.10628478,135.15,135.1,0.17]
[1718861724120,2.10628478,135.15,135.09,0.51]
[1718861724498,2.10628478,135.15,135.1,22.2]
[1718861724703,2.10628478,135.15,135.11,20.51]
[1718861724898,2.10628478,135.15,135.12,0.17]
[1718861725925,2.10628478,135.15,135.11,20.51]
[1718861726417,2.10628478,135.15,135.11,20.0]
[1718861728203,2.10628478,135.15,135.08,20.17]
[1718861729416,2.10628478,135.15,135.09,0.34]
[1718861729619,2.10628478,135.15,135.08,20.17]
[1718861731305,2.10628478,135.15,135.13,22.03]
[1718861731306,8.478e-05,135.15,135.13,22.03]
[1718861731504,15.3447,135.19,135.14,20.68]
[1718861731712,15.3447,135.19,135.16,22.03]
[1718861731910,15.3447,135.19,135.17,21.47726576]
[1718861732214,15.3447,135.19,135.17,20.0]
[1718861732903,16.5086,135.23,135.17,20.0]
[1718861739229,16.2333,135.26,135.2,0.17]
[1718861739411,16.2333,135.26,135.2,20.68]
[1718861739616,6.6345,135.29,135.23,0.17]
[1718861739821,16.2333,135.3,135.23,20.68]
[1718861740129,16.2333,135.3,135.25,22.03]
[1718861740308,16.2333,135.3,135.26,20.0]
[1718861740722,6.6345,135.32,135.27,0.17]
[1718861740907,6.6345,135.32,135.27,0.68]
[1718861741521,15.0531,135.33,135.27,0.68]
[1718861742043,15.0531,135.33,135.29,0.17]
[1718861742227,15.0531,135.33,135.29,20.51]
[1718861742530,6.103,135.35,135.29,20.51]
[1718861743610,6.103,135.35,135.29,50.0]
[1718861744536,6.103,135.35,135.29,20.0]
[1718861747439,0.17,135.34,135.25,20.0]
[1718861747648,6.103,135.35,135.26,0.17]
[1718861748533,6.103,135.35,135.26,0.34]
[1718861748736,6.103,135.35,135.27,0.34]
[1718861748940,6.103,135.35,135.28,0.34]
[1718861749127,16.6444,135.37,135.29,0.17]
[1718861750442,16.6444,135.37,135.28,0.34]
[1718861756134,0.17,135.36,135.27,20.0]
[1718861756321,0.68,135.36,135.27,20.0]
[1718861758544,0.68,135.36,135.28,3.66169115]
[1718861759527,0.68,135.36,135.27,20.0]
[1718861761346,16.6444,135.37,135.28,0.17]
[1718861761547,16.6444,135.37,135.28,15.7576]
[1718861761755,16.6444,135.37,135.3,0.17]
[1718861761947,16.6444,135.37,135.3,0.68]
[1718861762147,6.632,135.38,135.3,22.71]
[1718861762457,6.632,135.38,135.31,20.0]
[1718861762841,16.173,135.4,135.32,0.17]
[1718861763145,6.1428,135.41,135.32,6.7685]
[1718861763333,6.1428,135.41,135.33,42.03]
[1718861764660,15.5225,135.43,135.34,0.17]
[1718861764872,15.5225,135.43,135.34,16.2163]
[1718861765042,15.5225,135.43,135.35,20.0]
[1718861768742,16.1899,135.47,135.36,0.17]
[1718861769061,16.1899,135.47,135.38,0.17]
[1718861769362,23.6574,135.51,135.4,0.17]
[1718861769560,23.6574,135.51,135.4,20.68]
[1718861769764,62.62048113,135.56,135.41,6.6646]
[1718861769963,22.809,135.57,135.42,42.71]
[1718861770641,7.3776,135.55,135.42,42.71]
[1718861770848,7.3768,135.56,135.42,42.71]
[1718861771047,7.3773,135.55,135.42,42.71]
[1718861771254,7.3775,135.55,135.42,42.71]
[1718861771451,41.2509,135.57,135.42,42.03]
[1718861771659,22.03,135.56,135.42,20.0]
[1718861771862,7.3788,135.53,135.42,20.0]
[1718861772051,0.68,135.52,135.42,20.0]
[1718861773769,0.68,135.52,135.43,0.17]
[1718861774077,7.3798,135.51,135.42,20.0]
[1718861774368,0.68,135.52,135.42,20.0]
[1718861774549,0.17,135.5,135.42,20.0]
[1718861774862,7.3795,135.51,135.42,20.0]
[1718861775067,0.51,135.5,135.42,20.0]
[1718861775251,7.3795,135.51,135.42,20.0]
[1718861775252,0.17,135.52,135.42,20.0]
[1718861775461,0.68,135.52,135.42,20.0]
[1718861776448,8.059,135.52,135.42,20.0]
[1718861776842,0.68,135.52,135.42,20.0]
[1718861777051,0.68,135.52,135.43,1.47408804]
[1718861777253,0.68,135.52,135.42,20.0]
[1718861779547,7.3796,135.51,135.41,6.6646]
[1718861779753,0.68,135.5,135.41,6.6646]
[1718861779963,8.0602,135.5,135.42,20.0]
[1718861781273,0.68,135.5,135.42,20.0]
[1718861781458,0.17,135.5,135.42,20.0]
[1718861781658,29.4084,135.54,135.42,20.0]
[1718861781858,7.3784,135.53,135.42,20.0]
[1718861783066,8.059,135.52,135.42,20.0]
[1718861783273,0.68,135.52,135.42,20.0]
[1718861783773,30.50797189,135.57,135.45,0.17]
[1718861783959,22.809,135.57,135.46,6.2628]
[1718861784571,7.3768,135.56,135.46,6.2628]
[1718861785070,0.51,135.55,135.46,6.2628]
[1718861785256,7.3768,135.56,135.46,6.2628]
[1718861785458,16.2777,135.57,135.47,0.17]
[1718861785862,16.2777,135.57,135.44,38.5918]
[1718861785863,6.1068,135.56,135.44,16.5618]
[1718861786060,24.549,135.56,135.44,16.5618]
[1718861786274,7.3785,135.53,135.44,16.5618]
[1718861786771,7.3779,135.54,135.44,16.5618]
[1718861786962,0.17,135.52,135.44,16.5618]
[1718861787361,0.51,135.53,135.44,16.5618]
[1718861787559,0.34,135.54,135.45,20.0]
[1718861787865,15.2001,135.6,135.46,43.953]
[1718861788066,7.3763,135.57,135.47,20.0]
[1718861788467,7.377,135.56,135.47,20.0]
[1718861788667,18.4381,135.59,135.47,20.0]
[1718861788668,7.3764,135.57,135.47,20.0]
[1718861788976,7.3771,135.56,135.47,20.0]
[1718861789577,0.51,135.55,135.47,20.0]
[1718861791687,0.17,135.54,135.46,21.923]
[1718861791984,7.5482,135.54,135.46,21.923]
[1718861792287,0.17,135.52,135.46,21.923]
[1718861792470,0.51,135.53,135.46,21.923]
[1718861792676,0.17,135.53,135.46,21.923]
[1718861793561,22.03,135.58,135.47,22.7704]
[1718861793895,33.7915,135.64,135.49,0.17]
[1718861794082,33.7915,135.64,135.49,0.34]
[1718861794392,7.3742,135.61,135.5,0.34]
[1718861794619,15.36,135.64,135.51,0.34]
[1718861794790,15.36,135.64,135.52,16.3069]
[1718861794791,7.3733,135.63,135.52,16.3069]
[1718861795087,15.36,135.64,135.54,6.0197]
[1718861795387,7.3731,135.63,135.54,6.0197]
[1718861796173,7.3738,135.62,135.54,6.0197]
[1718861796497,7.3732,135.63,135.54,6.0197]
[1718861797190,7.3735,135.62,135.54,6.0197]
[1718861797396,0.17,135.6,135.54,6.0197]
[1718861797564,0.51,135.6,135.54,6.0197]
[1718861797766,0.17,135.59,135.52,16.3069]
[1718861797975,0.17,135.58,135.52,16.3069]
[1718861798188,0.51,135.59,135.52,16.3069]
[1718861798797,0.17,135.58,135.52,16.3069]
[1718861799201,0.17,135.58,135.5,6.4069]
[1718861799399,0.17,135.56,135.5,6.4069]
[1718861799718,0.17,135.57,135.5,6.4069]
[1718861799923,0.17,135.58,135.5,6.4069]
[1718861800223,7.5457,135.58,135.5,6.4069]
[1718861800396,0.51,135.57,135.5,6.4069]
[1718861800595,0.17,135.56,135.5,6.4069]
[1718861803505,29.4047,135.6,135.5,6.4069]
[1718861803703,7.3747,135.6,135.5,6.4069]
[1718861804419,7.3754,135.59,135.5,6.4069]
[1718861804713,7.3758,135.58,135.5,6.4069]
[1718861805313,7.5453,135.59,135.5,6.4069]
[1718861805614,0.51,135.58,135.5,6.4069]
[1718861805819,7.8857,135.58,135.5,6.4069]
[1718861807518,7.3763,135.57,135.5,6.4069]
[1718861807733,0.51,135.58,135.5,6.4069]
[1718861809441,7.8858,135.58,135.5,6.4069]
[1718861809663,7.69840865,135.62,135.51,16.5202]
[1718861809953,7.3731,135.63,135.53,0.17]
[1718861810839,7.3736,135.62,135.52,20.34]
[1718861811021,0.17,135.61,135.52,20.0]
[1718861811340,0.51,135.61,135.52,20.0]
[1718861811552,7.373,135.63,135.53,6.0155]
[1718861811923,40.4584,135.66,135.53,6.0155]
[1718861812125,40.4584,135.66,135.54,20.0]
[1718861812449,7.373,135.63,135.54,20.0]
[1718861812620,40.4584,135.66,135.57,6.3707]
[1718861812621,7.3715,135.66,135.57,6.3707]
[1718861813220,27.92386287,135.7,135.57,6.3707]
[1718861813428,7.3706,135.68,135.57,6.3707]
[1718861813629,7.3706,135.68,135.58,0.17]
[1718861814134,7.371,135.67,135.59,16.348]
[1718861814846,41.3449,135.71,135.59,16.348]
[1718861814847,7.3704,135.68,135.59,16.348]
[1718861815260,18.4244,135.69,135.59,16.348]
[1718861815833,7.3704,135.68,135.59,16.348]
[1718861816845,7.3699,135.69,135.59,16.348]
[1718861818039,7.3703,135.68,135.59,16.348]
[1718861818650,18.4176,135.74,135.6,6.7043]
[1718861818958,15.3236,135.76,135.63,0.17]
[1718861818959,22.03,135.75,135.63,0.17]
[1718861819145,7.368,135.73,135.63,20.17]
[1718861820349,7.3682,135.72,135.63,20.17]
[1718861820549,7.3677,135.73,135.63,20.0]
[1718861820942,7.3672,135.74,135.63,20.0]
[1718861821561,0.34,135.73,135.63,20.0]
[1718861822065,7.7075,135.73,135.63,20.0]
[1718861822565,0.34,135.73,135.63,20.0]
[1718861822745,0.17,135.72,135.63,20.0]
[1718861823250,7.69090247,135.78,135.66,6.6324]
[1718861823450,15.0348,135.79,135.66,6.6324]
[1718861823451,7.3659,135.76,135.67,20.0]
[1718861823853,37.0648,135.79,135.67,20.0]
[1718861824254,7.3662,135.76,135.67,20.0]
[1718861824467,7.5369,135.75,135.67,20.0]
[1718861824679,0.34,135.74,135.67,20.0]
[1718861824871,37.0648,135.79,135.68,16.31]
[1718861825055,7.3643,135.79,135.69,20.0]
[1718861825448,7.3649,135.78,135.69,20.0]
[1718861825654,7.3644,135.79,135.69,20.0]
[1718861826058,7.3651,135.78,135.69,20.0]
[1718861826267,26.07516934,135.81,135.7,6.0405]
[1718861826466,7.3638,135.8,135.7,6.0405]
[1718861826767,1.50435356,135.85,135.7,6.0405]
[1718861826768,41.2816,135.94,135.77,22.2]
[1718861826950,22.8908,135.94,135.78,20.0]
[1718861827147,22.03,135.91,135.79,0.17]
[1718861827347,22.03,135.92,135.78,20.0]
[1718861827674,22.03,135.89,135.77,20.0]
[1718861827874,22.03,135.89,135.78,0.17]
[1718861828254,2.10628478,135.94,135.79,6.0405]
[1718861828571,7.3585,135.9,135.8,20.0]
[1718861828770,7.3589,135.89,135.8,20.0]
[1718861829674,6.1863,135.88,135.76,16.1885]
[1718861830080,7.3606,135.86,135.76,16.1885]
[1718861830367,6.1863,135.88,135.76,16.1885]
[1718861830565,24.5852,135.88,135.76,16.1885]
[1718861830773,7.5308,135.86,135.76,16.1885]
[1718861830957,0.17,135.84,135.76,16.1885]
[1718861831277,0.34,135.84,135.76,16.1885]
[1718861831473,0.17,135.82,135.76,16.1885]
[1718861831666,0.34,135.82,135.76,16.1885]
[1718861831868,0.34,135.83,135.76,16.1885]
[1718861832377,0.17,135.84,135.76,16.1885]
[1718861832675,0.17,135.85,135.76,16.1885]
[1718861832876,0.17,135.85,135.77,20.0]
[1718861833372,7.66552658,135.89,135.77,20.0]
[1718861833675,7.66552658,135.89,135.78,0.17]
[1718861833863,18.59048478,135.93,135.8,0.17]
[1718861834170,14.10511238,135.96,135.8,20.68]
[1718861834373,16.21139716,135.96,135.8,20.68]
[1718861834576,16.21139716,135.96,135.8,20.51]
[1718861834962,7.3578,135.91,135.8,20.0]
[1718861835170,100.0,135.93,135.8,20.0]
[1718861835477,125.55,135.93,135.79,6.6118]
[1718861835859,7.36,135.87,135.79,6.6118]
[1718861836060,0.68,135.86,135.79,6.6118]
[1718861836275,0.34,135.86,135.79,6.6118]
[1718861836684,0.34,135.85,135.79,6.6118]
[1718861837064,0.17,135.86,135.79,6.6118]
[1718861837458,0.17,135.87,135.79,6.6118]
[1718861837861,0.51,135.87,135.79,6.6118]
[1718861838262,2.10628478,135.92,135.81,6.5745]
[1718861838466,7.65971238,135.96,135.83,0.17]
[1718861838786,23.6392,135.97,135.83,0.17]
[1718861838994,6.1867,135.99,135.85,0.17]
[1718861839191,6.1867,135.99,135.85,20.0]
[1718861839486,7.3555,135.96,135.85,20.0]
[1718861839712,7.3557,135.95,135.85,20.0]
[1718861839869,100.0,135.95,135.84,22.9389]
[1718861840072,7.3573,135.92,135.84,22.9389]
[1718861840294,2.10628478,135.94,135.84,22.9389]
[1718861840495,0.34,135.93,135.84,22.9389]
[1718861840864,2.10628478,135.94,135.84,22.9389]
[1718861841066,6.1867,135.99,135.84,22.9389]
[1718861841366,7.3552,135.96,135.84,22.9389]
[1718861841674,7.3546,135.97,135.84,22.9389]
[1718861841990,7.3554,135.96,135.84,22.9389]
[1718861842373,2.10628478,135.98,135.85,20.0]
[1718861842374,9.46048478,135.98,135.85,20.0]
[1718861842571,7.3555,135.96,135.85,20.0]
[1718861842980,0.68,135.95,135.85,20.0]
[1718861843183,0.17,135.94,135.85,20.0]
[1718861843388,0.17,135.94,135.84,22.9389]
[1718861843596,7.5266,135.94,135.84,22.9389]
[1718861843802,0.17,135.92,135.84,22.9389]
[1718861844006,0.34,135.92,135.84,22.9389]
[1718861844215,0.68,135.92,135.84,22.9389]
[1718861844875,6.1867,135.99,135.85,20.0]
[1718861845175,7.3554,135.96,135.85,20.0]
[1718861845377,7.3556,135.95,135.85,20.0]
[1718861845904,7.3563,135.94,135.84,22.9389]
[1718861846087,0.34,135.93,135.84,22.9389]
[1718861846290,0.17,135.94,135.84,22.9389]
[1718861846476,0.17,135.91,135.84,22.9389]
[1718861847286,7.528,135.91,135.84,22.9389]
[1718861847492,0.17,135.89,135.84,22.9389]
[1718861847878,7.5265,135.94,135.84,22.9389]
[1718861848188,7.5277,135.92,135.84,22.9389]
[1718861848388,0.17,135.9,135.84,22.9389]
[1718861848588,21.707,135.94,135.79,6.3575]
[1718861848790,92.65628478,135.93,135.79,6.3575]
[1718861848990,7.3605,135.86,135.79,6.3575]
[1718861849298,7.3614,135.85,135.79,6.3575]
[1718861849487,7.3604,135.87,135.79,6.3575]
[1718861849696,0.17,135.88,135.79,6.3575]
[1718861850004,0.17,135.85,135.79,6.3575]
[1718861850204,0.68,135.85,135.79,6.3575]
[1718861850382,8.0411,135.85,135.79,6.3575]
[1718861851111,7.5321,135.83,135.79,6.3575]
[1718861851317,0.17,135.83,135.79,6.3575]
[1718861851833,0.17,135.83,135.76,6.3582]
[1718861852124,0.17,135.8,135.76,6.3582]
[1718861852484,0.68,135.8,135.76,6.3582]
[1718861853082,0.34,135.8,135.76,6.3582]
[1718861853281,0.17,135.83,135.76,6.3582]
[1718861853487,0.17,135.81,135.76,6.3582]
[1718861853700,7.5334,135.81,135.76,6.3582]
[1718861853908,0.17,135.79,135.74,16.1318]
[1718861854096,0.51,135.79,135.73,6.4307]
[1718861854310,7.3657,135.77,135.73,6.4307]
[1718861854484,0.51,135.76,135.73,6.4307]
[1718861854817,0.17,135.79,135.73,6.4307]
[1718861855009,0.68,135.79,135.73,6.4307]
[1718861855809,25.55,135.85,135.73,6.4307]
[1718861855986,7.3628,135.82,135.73,6.4307]
[1718861856187,18.4027,135.85,135.73,6.4307]
[1718861856409,7.3628,135.82,135.73,6.4307]
[1718861856592,18.4027,135.85,135.73,6.4307]
[1718861856918,7.3619,135.84,135.73,6.4307]
[1718861857210,7.3613,135.85,135.73,6.4307]
[1718861857416,18.4016,135.86,135.73,6.4307]
[1718861857613,7.362,135.84,135.73,6.4307]
[1718861858205,7.5326,135.82,135.73,6.4307]
[1718861858400,0.51,135.81,135.73,6.4307]
[1718861858619,0.17,135.8,135.73,6.4307]
[1718861858829,7.5338,135.8,135.73,6.4307]
[1718861859139,0.34,135.79,135.73,6.4307]
[1718861861039,0.34,135.78,135.73,6.4307]
[1718861861325,0.34,135.77,135.73,6.4307]
[1718861861529,7.3634,135.81,135.73,6.4307]
[1718861861736,0.17,135.8,135.73,6.4307]
[1718861862817,0.17,135.79,135.73,6.4307]
[1718861863020,7.6577525,135.84,135.73,6.4307]
[1718861863213,7.6577525,135.84,135.74,15.415]
[1718861863425,7.3627,135.82,135.74,15.415]
[1718861863721,7.65738079,135.86,135.74,15.415]
[1718861863920,7.3621,135.83,135.74,15.415]
[1718861864109,7.3627,135.82,135.74,15.415]
[1718861864311,7.3637,135.8,135.74,15.415]
[1718861864536,0.17,135.81,135.74,15.415]
[1718861864720,0.17,135.8,135.74,15.415]
[1718861864923,0.51,135.81,135.74,15.415]
[1718861866138,7.5338,135.8,135.74,15.415]
[1718861866340,0.17,135.79,135.74,15.415]
[1718861866551,0.34,135.79,135.74,15.415]
[1718861867845,0.17,135.81,135.74,15.415]
[1718861868031,0.17,135.8,135.74,15.415]
[1718861868426,7.5338,135.8,135.74,15.415]
[1718861868635,0.34,135.79,135.74,15.415]
[1718861868843,0.17,135.79,135.74,15.415]
[1718861869226,0.17,135.78,135.73,6.4307]
[1718861869426,7.8749,135.78,135.73,6.4307]
[1718861869638,0.34,135.78,135.73,6.4307]
[1718861869844,0.17,135.8,135.73,6.4307]
[1718861870031,0.34,135.78,135.73,6.4307]
[1718861870533,0.17,135.77,135.73,6.4307]
[1718861870733,0.17,135.82,135.73,6.4307]
[1718861870940,45.17,135.82,135.74,7.3666]
[1718861871126,45.17,135.82,135.73,6.4307]
[1718861871327,0.17,135.82,135.75,7.3662]
[1718861871547,45.17,135.82,135.75,7.3662]
[1718861871747,18.4082,135.81,135.73,6.4307]
[1718861872261,7.3639,135.8,135.75,7.3661]
[1718861872650,0.17,135.78,135.73,6.4307]
[1718861872830,0.51,135.78,135.73,6.4307]
[1718861873030,0.17,135.77,135.73,6.4307]
[1718861873251,0.17,135.77,135.73,13.7978]
[1718861873432,0.51,135.78,135.73,6.4307]
[1718861873666,0.17,135.78,135.77,7.3653]
[1718861873885,108.03402819,135.86,135.76,7.3658]
[1718861874187,7.3635,135.81,135.76,7.3658]
[1718861874481,7.3638,135.8,135.75,7.3662]
[1718861874788,7.3634,135.81,135.76,7.3659]
[1718861874995,26.06301047,135.84,135.77,7.3651]
[1718861874996,7.3629,135.82,135.77,7.3651]
[1718861875164,7.3623,135.83,135.79,7.3642]
[1718861875486,7.3623,135.83,135.78,7.3647]
[1718861875677,7.3624,135.83,135.78,7.3646]
[1718861876291,7.3627,135.82,135.77,7.3652]
[1718861876492,7.3661,135.76,135.71,23.0553]
[1718861876686,0.17,135.75,135.71,23.0552]
[1718861876859,0.17,135.75,135.71,15.6868]
[1718861877064,7.3671,135.74,135.7,6.6416]
[1718861877266,7.3681,135.72,135.68,15.9443]
[1718861877487,0.68,135.73,135.68,23.3142]
[1718861877488,7.8776,135.73,135.68,23.3142]
[1718861877685,0.34,135.73,135.69,7.3693]
[1718861878191,0.17,135.74,135.68,15.9443]
[1718861878490,0.17,135.74,135.71,7.3686]
[1718861878994,7.5371,135.74,135.68,15.9443]
[1718861879290,0.17,135.73,135.7,7.3691]
[1718861879479,0.17,135.74,135.7,7.3691]
[1718861879680,0.17,135.73,135.69,7.3696]
[1718861879875,0.68,135.73,135.69,7.3696]
[1718861880095,0.68,135.73,135.7,7.369]
[1718861880769,0.51,135.73,135.7,7.3688]
[1718861880971,0.17,135.74,135.7,7.3688]
[1718861881180,0.17,135.74,135.68,15.9443]
[1718861881181,0.68,135.74,135.68,15.9443]
[1718861881376,0.68,135.74,135.7,7.3689]
[1718861881700,0.68,135.74,135.68,15.9443]